[Event "Late-Titled-Tuesday-Blitz-June-04-2024"]
[Site "Chess.com"]
[Date "2024.06.04"]
[Round "9"]
[White "IlanSchnaider"]
[Black "snowlord"]
[Result "1-0"]
[WhiteElo "2798"]
[BlackElo "2914"]
[TimeControl "180+1"]
[EndTime "15:44:09 PDT"]
[Termination "IlanSchnaider won on time"]

1. e4 {[%clk 0:03:00.9]} 1... Nc6 {[%clk 0:02:59]} 2. d4 {[%clk 0:02:56.7]} 2...
e5 {[%clk 0:02:58.2]} 3. d5 {[%clk 0:02:55.4]} 3... Nce7 {[%clk 0:02:58.3]} 4.
c4 {[%clk 0:02:55.6]} 4... Ng6 {[%clk 0:02:58.5]} 5. Nc3 {[%clk 0:02:56]} 5...
Nf6 {[%clk 0:02:58.8]} 6. h3 {[%clk 0:02:55.4]} 6... Bc5 {[%clk 0:02:55.3]} 7.
Bd3 {[%clk 0:02:55.1]} 7... a6 {[%clk 0:02:54.2]} 8. Nge2 {[%clk 0:02:55]} 8...
d6 {[%clk 0:02:54.7]} 9. O-O {[%clk 0:02:54.7]} 9... O-O {[%clk 0:02:53.8]} 10.
a3 {[%clk 0:02:54.9]} 10... Nh5 {[%clk 0:02:49.6]} 11. b4 {[%clk 0:02:53.4]}
11... Ba7 {[%clk 0:02:50.2]} 12. Be3 {[%clk 0:02:53.5]} 12... Nhf4 {[%clk
0:02:48.5]} 13. Nxf4 {[%clk 0:02:52]} 13... exf4 {[%clk 0:02:39.3]} 14. Bxa7
{[%clk 0:02:52]} 14... Rxa7 {[%clk 0:02:30.7]} 15. Kh2 {[%clk 0:02:39.5]} 15...
Qh4 {[%clk 0:02:27.4]} 16. Be2 {[%clk 0:02:06.6]} 16... Ne5 {[%clk 0:02:25.7]}
17. Qd4 {[%clk 0:01:43.6]} 17... f3 {[%clk 0:02:22.2]} 18. Qxa7 {[%clk
0:00:27.8]} 18... fxg2 {[%clk 0:02:21.9]} 19. Qe3 {[%clk 0:00:26.2]} 19...
gxf1=N+ {[%clk 0:02:10.3]} 20. Rxf1 {[%clk 0:00:27.1]} 20... g5 {[%clk
0:01:25.2]} 21. Qg3 {[%clk 0:00:25.4]} 21... Qxg3+ {[%clk 0:01:16.7]} 22. Kxg3
{[%clk 0:00:21.6]} 22... b6 {[%clk 0:01:10.7]} 23. h4 {[%clk 0:00:20.6]} 23...
f6 {[%clk 0:01:09.8]} 24. f4 {[%clk 0:00:19.3]} 24... gxf4+ {[%clk 0:01:09]} 25.
Rxf4 {[%clk 0:00:19.8]} 25... Kg7 {[%clk 0:01:05.3]} 26. Nd1 {[%clk 0:00:17.9]}
26... Rg8 {[%clk 0:01:00.8]} 27. h5 {[%clk 0:00:14.5]} 27... Kf7+ {[%clk
0:00:59.2]} 28. Kf2 {[%clk 0:00:13.6]} 28... Ke7 {[%clk 0:00:59.8]} 29. Ne3
{[%clk 0:00:13.3]} 29... a5 {[%clk 0:00:57.4]} 30. Rh4 {[%clk 0:00:09]} 30...
axb4 {[%clk 0:00:50.2]} 31. axb4 {[%clk 0:00:09.2]} 31... Bd7 {[%clk 0:00:51.1]}
32. Nc2 {[%clk 0:00:08]} 32... Ra8 {[%clk 0:00:47]} 33. Rh1 {[%clk 0:00:08.2]}
33... Ra2 {[%clk 0:00:47.2]} 34. Nd4 {[%clk 0:00:07.7]} 34... Nxc4 {[%clk
0:00:25.1]} 35. Rg1 {[%clk 0:00:08.1]} 35... Kf8 {[%clk 0:00:24]} 36. h6 {[%clk
0:00:08.1]} 36... Ne5 {[%clk 0:00:07.4]} 37. Rg7 {[%clk 0:00:08.1]} 37... Ra3
{[%clk 0:00:08]} 38. Rxh7 {[%clk 0:00:05.6]} 38... Rh3 {[%clk 0:00:08.7]} 39.
Bb5 {[%clk 0:00:03.9]} 39... Bxb5 {[%clk 0:00:05.5]} 40. Rh8+ {[%clk 0:00:02.3]}
40... Kf7 {[%clk 0:00:04.9]} 41. Nxb5 {[%clk 0:00:01.6]} 41... Rxh6 {[%clk
0:00:03.3]} 42. Rxh6 {[%clk 0:00:01.7]} 42... Ng4+ {[%clk 0:00:03.9]} 43. Kf3
{[%clk 0:00:01.9]} 43... Nxh6 {[%clk 0:00:04.8]} 44. Nxc7 {[%clk 0:00:02.6]}
44... f5 {[%clk 0:00:03.9]} 45. Nb5 {[%clk 0:00:02.2]} 45... Ke7 {[%clk
0:00:03.8]} 46. Nd4 {[%clk 0:00:02.1]} 46... Kf6 {[%clk 0:00:03.2]} 47. Kf4
{[%clk 0:00:01.8]} 47... fxe4 {[%clk 0:00:03.5]} 48. Kxe4 {[%clk 0:00:02.5]}
48... Nf7 {[%clk 0:00:02.8]} 49. Nc6 {[%clk 0:00:01.6]} 49... Ng5+ {[%clk
0:00:02.6]} 50. Kd4 {[%clk 0:00:02.2]} 50... Nf3+ {[%clk 0:00:03.1]} 51. Ke4
{[%clk 0:00:02.2]} 51... Nd2+ {[%clk 0:00:03.4]} 52. Kd3 {[%clk 0:00:02.5]}
52... Nf3 {[%clk 0:00:03.8]} 53. Kc4 {[%clk 0:00:02.6]} 53... Kf5 {[%clk
0:00:02.7]} 54. Kb5 {[%clk 0:00:01.8]} 54... Ke4 {[%clk 0:00:03.4]} 55. Ne7
{[%clk 0:00:02.1]} 55... Nd4+ {[%clk 0:00:02.4]} 56. Kxb6 {[%clk 0:00:02.5]}
56... Nc2 {[%clk 0:00:02.2]} 57. b5 {[%clk 0:00:02.5]} 57... Na3 {[%clk
0:00:02.2]} 58. Kc6 {[%clk 0:00:02.5]} 58... Nc4 {[%clk 0:00:01.8]} 59. b6
{[%clk 0:00:02.5]} 59... Na5+ {[%clk 0:00:02]} 60. Kxd6 {[%clk 0:00:02.4]} 60...
Kd4 {[%clk 0:00:01.5]} 61. Kc7 {[%clk 0:00:02.2]} 61... Kc5 {[%clk 0:00:01.3]}
62. d6 {[%clk 0:00:01.8]} 1-0

[Event "Late-Titled-Tuesday-Blitz-June-04-2024"]
[Site "Chess.com"]
[Date "2024.06.04"]
[Round "9"]
[White "Engima32"]
[Black "slidingknight2775"]
[Result "1-0"]
[WhiteElo "2487"]
[BlackElo "2646"]
[TimeControl "180+1"]
[EndTime "15:44:12 PDT"]
[Termination "Engima32 won by checkmate"]

1. Nf3 {[%clk 0:02:55.6]} 1... Nf6 {[%clk 0:02:59.3]} 2. g3 {[%clk 0:02:55.1]}
2... d5 {[%clk 0:02:55]} 3. Bg2 {[%clk 0:02:54.8]} 3... c6 {[%clk 0:02:55.5]} 4.
d4 {[%clk 0:02:53]} 4... Bf5 {[%clk 0:02:55]} 5. O-O {[%clk 0:02:52.8]} 5... e6
{[%clk 0:02:54.4]} 6. c4 {[%clk 0:02:53]} 6... h6 {[%clk 0:02:51.8]} 7. Nc3
{[%clk 0:02:52.5]} 7... Nbd7 {[%clk 0:02:52.2]} 8. Qb3 {[%clk 0:02:52]} 8... Qb6
{[%clk 0:02:52]} 9. c5 {[%clk 0:02:52]} 9... Qa6 {[%clk 0:02:52]} 10. Ne5 {[%clk
0:02:45.3]} 10... Nxe5 {[%clk 0:02:47.3]} 11. dxe5 {[%clk 0:02:44.1]} 11... Nd7
{[%clk 0:02:47.9]} 12. e4 {[%clk 0:02:44.1]} 12... Nxc5 {[%clk 0:02:46]} 13. Qc2
{[%clk 0:02:44.1]} 13... Nxe4 {[%clk 0:02:33.7]} 14. Nxe4 {[%clk 0:02:41.4]}
14... Bxe4 {[%clk 0:02:33.4]} 15. Bxe4 {[%clk 0:02:41.3]} 15... dxe4 {[%clk
0:02:34.1]} 16. Rd1 {[%clk 0:02:41.4]} 16... Be7 {[%clk 0:02:30.6]} 17. Qxe4
{[%clk 0:02:37.9]} 17... O-O {[%clk 0:02:27.4]} 18. Qg4 {[%clk 0:02:28.1]} 18...
Kh8 {[%clk 0:02:15]} 19. Rd7 {[%clk 0:02:26.1]} 19... Bc5 {[%clk 0:01:20.5]} 20.
b4 {[%clk 0:01:41.7]} 20... Bb6 {[%clk 0:00:55.6]} 21. Bxh6 {[%clk 0:01:15.7]}
21... gxh6 {[%clk 0:00:45.2]} 22. Qf4 {[%clk 0:01:13.6]} 22... Qe2 {[%clk
0:00:26]} 23. Qxh6+ {[%clk 0:00:54.5]} 23... Kg8 {[%clk 0:00:26.2]} 24. Qg5+
{[%clk 0:00:53.1]} 24... Kh7 {[%clk 0:00:26.4]} 25. Qf6 {[%clk 0:00:32.1]} 25...
Qh5 {[%clk 0:00:24]} 26. Rad1 {[%clk 0:00:18.6]} 26... Qg6 {[%clk 0:00:19.9]}
27. Qh4+ {[%clk 0:00:18.7]} 27... Qh6 {[%clk 0:00:19.8]} 28. Qe4+ {[%clk
0:00:18.6]} 28... Qg6 {[%clk 0:00:20.2]} 29. Qh4+ {[%clk 0:00:18.8]} 29... Kg7
{[%clk 0:00:19.5]} 30. Rxb7 {[%clk 0:00:14.6]} 30... Rad8 {[%clk 0:00:14]} 31.
Rbd7 {[%clk 0:00:13]} 31... Rxd7 {[%clk 0:00:10.9]} 32. Rxd7 {[%clk 0:00:13.2]}
32... Rh8 {[%clk 0:00:09.7]} 33. Qf4 {[%clk 0:00:11.2]} 33... Rh5 {[%clk
0:00:05.1]} 34. Rd2 {[%clk 0:00:04.5]} 34... Rf5 {[%clk 0:00:05]} 35. Qc4 {[%clk
0:00:04.3]} 35... Qg5 {[%clk 0:00:04.1]} 36. Re2 {[%clk 0:00:03.3]} 36... Qg6
{[%clk 0:00:02.5]} 37. Qxc6 {[%clk 0:00:03]} 37... Rg5 {[%clk 0:00:02.3]} 38.
Qe4 {[%clk 0:00:02.7]} 38... Qxe4 {[%clk 0:00:02]} 39. Rxe4 {[%clk 0:00:03.6]}
39... Rg6 {[%clk 0:00:02.6]} 40. Kg2 {[%clk 0:00:03.1]} 40... Rh6 {[%clk
0:00:03.1]} 41. f4 {[%clk 0:00:03.6]} 41... Rh8 {[%clk 0:00:03.6]} 42. Rc4
{[%clk 0:00:04.2]} 42... Rd8 {[%clk 0:00:04]} 43. a4 {[%clk 0:00:04.6]} 43...
Rd2+ {[%clk 0:00:04]} 44. Kh3 {[%clk 0:00:05.1]} 44... a5 {[%clk 0:00:04.4]} 45.
Rc6 {[%clk 0:00:04.4]} 45... Bd8 {[%clk 0:00:04.1]} 46. bxa5 {[%clk 0:00:04.1]}
46... Bxa5 {[%clk 0:00:03.4]} 47. Rc5 {[%clk 0:00:04.3]} 47... Bd8 {[%clk
0:00:03.3]} 48. Rc8 {[%clk 0:00:04.3]} 48... Kf8 {[%clk 0:00:02.5]} 49. a5
{[%clk 0:00:04]} 49... Ke8 {[%clk 0:00:02.3]} 50. a6 {[%clk 0:00:04.5]} 50...
Ra2 {[%clk 0:00:02.9]} 51. Ra8 {[%clk 0:00:04.3]} 51... Kd7 {[%clk 0:00:03]} 52.
a7 {[%clk 0:00:04.4]} 52... Kc7 {[%clk 0:00:02.4]} 53. Kg4 {[%clk 0:00:04.6]}
53... Ra6 {[%clk 0:00:02.7]} 54. h4 {[%clk 0:00:03.9]} 54... Be7 {[%clk
0:00:03]} 55. Re8 {[%clk 0:00:03.3]} 55... Kd7 {[%clk 0:00:02]} 56. a8=Q {[%clk
0:00:03.4]} 56... Rxa8 {[%clk 0:00:02.9]} 57. Rxa8 {[%clk 0:00:04]} 57... Bd8
{[%clk 0:00:03.8]} 58. Ra7+ {[%clk 0:00:04.4]} 58... Ke8 {[%clk 0:00:04.7]} 59.
Ra8 {[%clk 0:00:04.2]} 59... Ke7 {[%clk 0:00:05.1]} 60. Rxd8 {[%clk 0:00:04.7]}
60... Kxd8 {[%clk 0:00:06]} 61. Kg5 {[%clk 0:00:05.6]} 61... Ke7 {[%clk
0:00:06.9]} 62. h5 {[%clk 0:00:06.2]} 62... Kf8 {[%clk 0:00:07.8]} 63. Kf6
{[%clk 0:00:06.8]} 63... Kg8 {[%clk 0:00:08.7]} 64. h6 {[%clk 0:00:07.6]} 64...
Kh7 {[%clk 0:00:09.6]} 65. Kxf7 {[%clk 0:00:08.3]} 65... Kxh6 {[%clk 0:00:10.5]}
66. Kxe6 {[%clk 0:00:09.2]} 66... Kg6 {[%clk 0:00:10.9]} 67. f5+ {[%clk
0:00:10.1]} 67... Kh5 {[%clk 0:00:11.8]} 68. f6 {[%clk 0:00:10.8]} 68... Kg4
{[%clk 0:00:12.7]} 69. f7 {[%clk 0:00:11.5]} 69... Kxg3 {[%clk 0:00:13]} 70.
f8=Q {[%clk 0:00:12.4]} 70... Kg4 {[%clk 0:00:13.6]} 71. Qf5+ {[%clk 0:00:13.3]}
71... Kg3 {[%clk 0:00:14.2]} 72. Kf6 {[%clk 0:00:14.2]} 72... Kg2 {[%clk
0:00:14.8]} 73. e6 {[%clk 0:00:15.1]} 73... Kg3 {[%clk 0:00:15.5]} 74. e7 {[%clk
0:00:16]} 74... Kh4 {[%clk 0:00:15.9]} 75. e8=Q {[%clk 0:00:16.9]} 75... Kg3
{[%clk 0:00:16.6]} 76. Qeg6+ {[%clk 0:00:17.4]} 76... Kh4 {[%clk 0:00:17.2]} 77.
Qfh5# {[%clk 0:00:18.1]} 1-0

[Event "Late-Titled-Tuesday-Blitz-June-04-2024"]
[Site "Chess.com"]
[Date "2024.06.04"]
[Round "9"]
[White "Cambek64"]
[Black "Godzillator"]
[Result "0-1"]
[WhiteElo "2506"]
[BlackElo "2426"]
[TimeControl "180+1"]
[EndTime "15:44:15 PDT"]
[Termination "Godzillator won on time"]

1. e4 {[%clk 0:02:52.5]} 1... d5 {[%clk 0:03:00]} 2. Nc3 {[%clk 0:02:49.3]} 2...
dxe4 {[%clk 0:02:57.6]} 3. Nxe4 {[%clk 0:02:49.3]} 3... Nf6 {[%clk 0:02:58.1]}
4. d3 {[%clk 0:02:46.1]} 4... Bf5 {[%clk 0:02:55.6]} 5. f3 {[%clk 0:02:41.9]}
5... e6 {[%clk 0:02:54.8]} 6. Ne2 {[%clk 0:02:39.2]} 6... Nxe4 {[%clk 0:02:48]}
7. dxe4 {[%clk 0:02:31.1]} 7... Qxd1+ {[%clk 0:02:46.3]} 8. Kxd1 {[%clk
0:02:30.9]} 8... Bg6 {[%clk 0:02:47.2]} 9. Be3 {[%clk 0:02:24.4]} 9... e5 {[%clk
0:02:46.5]} 10. c3 {[%clk 0:02:15.8]} 10... Nd7 {[%clk 0:02:43.9]} 11. Ng3
{[%clk 0:02:13.6]} 11... O-O-O {[%clk 0:02:41.6]} 12. Kc2 {[%clk 0:02:12.5]}
12... Bc5 {[%clk 0:02:40.5]} 13. Re1 {[%clk 0:02:08.5]} 13... h5 {[%clk
0:02:37.7]} 14. Bc4 {[%clk 0:02:04.2]} 14... h4 {[%clk 0:02:32.5]} 15. Nf5
{[%clk 0:02:04.7]} 15... Bxf5 {[%clk 0:02:31.4]} 16. exf5 {[%clk 0:02:05.2]}
16... Bxe3 {[%clk 0:02:19.4]} 17. Rxe3 {[%clk 0:02:00.5]} 17... f6 {[%clk
0:02:19.2]} 18. Be6 {[%clk 0:01:52.5]} 18... Kb8 {[%clk 0:02:19.1]} 19. Bxd7
{[%clk 0:01:53]} 19... Rxd7 {[%clk 0:02:19.2]} 20. Rd1 {[%clk 0:01:53.3]} 20...
Kc8 {[%clk 0:02:15.6]} 21. Rxd7 {[%clk 0:01:49.8]} 21... Kxd7 {[%clk 0:02:15.8]}
22. Re4 {[%clk 0:01:50.4]} 22... Rh5 {[%clk 0:02:14.6]} 23. Rg4 {[%clk
0:01:50.8]} 23... Rh7 {[%clk 0:02:06.9]} 24. Kd3 {[%clk 0:01:41.8]} 24... Ke7
{[%clk 0:02:06.3]} 25. a4 {[%clk 0:01:27.3]} 25... a5 {[%clk 0:02:05.9]} 26. Rc4
{[%clk 0:01:19.3]} 26... c6 {[%clk 0:02:03.1]} 27. b4 {[%clk 0:01:19]} 27... h3
{[%clk 0:01:41.1]} 28. g3 {[%clk 0:01:06.9]} 28... Kd6 {[%clk 0:01:32.8]} 29.
bxa5 {[%clk 0:01:05.5]} 29... Rh5 {[%clk 0:01:26.2]} 30. g4 {[%clk 0:01:04.1]}
30... Rh8 {[%clk 0:01:23]} 31. Rb4 {[%clk 0:01:04.6]} 31... Kc7 {[%clk
0:01:22.2]} 32. Ke3 {[%clk 0:00:51.6]} 32... Ra8 {[%clk 0:01:21.5]} 33. Kf2
{[%clk 0:00:52]} 33... Rxa5 {[%clk 0:01:20.8]} 34. Kg3 {[%clk 0:00:52]} 34...
Rc5 {[%clk 0:01:20.6]} 35. Rb3 {[%clk 0:00:49.6]} 35... Rc4 {[%clk 0:01:19.6]}
36. Ra3 {[%clk 0:00:49.8]} 36... Kb6 {[%clk 0:01:14.8]} 37. Kxh3 {[%clk
0:00:49.5]} 37... Ka5 {[%clk 0:01:15.1]} 38. Kh4 {[%clk 0:00:49]} 38... Rf4
{[%clk 0:01:13.9]} 39. c4 {[%clk 0:00:39.4]} 39... Rxc4 {[%clk 0:01:06.8]} 40.
Kh5 {[%clk 0:00:39.1]} 40... Rxa4 {[%clk 0:01:03.3]} 41. Re3 {[%clk 0:00:35.7]}
41... b5 {[%clk 0:01:01.1]} 42. Kg6 {[%clk 0:00:35.9]} 42... b4 {[%clk
0:01:00.5]} 43. Kxg7 {[%clk 0:00:35.2]} 43... Ra3 {[%clk 0:01:00.9]} 44. Re1
{[%clk 0:00:26]} 44... Rxf3 {[%clk 0:01:00]} 45. Kxf6 {[%clk 0:00:26.2]} 45...
c5 {[%clk 0:01:00.4]} 46. Kxe5 {[%clk 0:00:22.8]} 46... c4 {[%clk 0:01:00.8]}
47. Kd4 {[%clk 0:00:20.1]} 47... c3 {[%clk 0:00:59.8]} 48. Kc4 {[%clk 0:00:20]}
48... Rf4+ {[%clk 0:00:59.1]} 49. Kc5 {[%clk 0:00:20.3]} 49... Ka4 {[%clk
0:00:55.1]} 50. Rc1 {[%clk 0:00:14.2]} 50... Kb3 {[%clk 0:00:54.6]} 51. h3
{[%clk 0:00:12.5]} 51... Kb2 {[%clk 0:00:52.8]} 52. Rg1 {[%clk 0:00:11.6]} 52...
c2 {[%clk 0:00:52.6]} 53. Kd5 {[%clk 0:00:11.3]} 53... c1=Q {[%clk 0:00:50.9]}
54. Rxc1 {[%clk 0:00:11.8]} 54... Kxc1 {[%clk 0:00:51.3]} 55. Ke5 {[%clk
0:00:12.4]} 55... Rf3 {[%clk 0:00:50.6]} 56. g5 {[%clk 0:00:11.8]} 56... Rxh3
{[%clk 0:00:48.2]} 57. g6 {[%clk 0:00:12.1]} 57... b3 {[%clk 0:00:48.2]} 58. g7
{[%clk 0:00:12.4]} 58... Rg3 {[%clk 0:00:48.4]} 59. f6 {[%clk 0:00:12.9]} 59...
b2 {[%clk 0:00:48.2]} 60. f7 {[%clk 0:00:12.8]} 60... b1=Q {[%clk 0:00:46.5]}
61. f8=Q {[%clk 0:00:04.7]} 61... Qb2+ {[%clk 0:00:46.1]} 62. Ke6 {[%clk
0:00:03.4]} 62... Re3+ {[%clk 0:00:44.6]} 63. Kf7 {[%clk 0:00:03.8]} 63... Qb3+
{[%clk 0:00:44]} 64. Kg6 {[%clk 0:00:02.3]} 64... Qd3+ {[%clk 0:00:43]} 65. Kf6
{[%clk 0:00:02]} 65... Rf3+ {[%clk 0:00:43]} 66. Kg5 {[%clk 0:00:01.9]} 66...
Rg3+ {[%clk 0:00:40.9]} 67. Kf6 {[%clk 0:00:01.5]} 67... Rg6+ {[%clk 0:00:38.3]}
68. Kf7 {[%clk 0:00:01.5]} 68... Qf5+ {[%clk 0:00:36.8]} 69. Kg8 {[%clk
0:00:01.2]} 69... Qe6+ {[%clk 0:00:35.2]} 70. Qf7 {[%clk 0:00:01.5]} 70... Qc6
{[%clk 0:00:30.4]} 0-1

[Event "Late-Titled-Tuesday-Blitz-June-04-2024"]
[Site "Chess.com"]
[Date "2024.06.04"]
[Round "9"]
[White "Kapitan_Bayan"]
[Black "sokidze"]
[Result "0-1"]
[WhiteElo "2415"]
[BlackElo "2792"]
[TimeControl "180+1"]
[EndTime "15:44:19 PDT"]
[Termination "sokidze won by resignation"]

1. e4 {[%clk 0:02:54.3]} 1... c6 {[%clk 0:02:59.6]} 2. d4 {[%clk 0:02:54.1]}
2... d5 {[%clk 0:03:00.2]} 3. exd5 {[%clk 0:02:54.1]} 3... cxd5 {[%clk
0:03:00.2]} 4. Bd3 {[%clk 0:02:54.7]} 4... Nc6 {[%clk 0:03:00]} 5. c3 {[%clk
0:02:55]} 5... Nf6 {[%clk 0:03:00.7]} 6. h3 {[%clk 0:02:54.7]} 6... e5 {[%clk
0:03:00.6]} 7. dxe5 {[%clk 0:02:54.4]} 7... Nxe5 {[%clk 0:03:01.5]} 8. Nf3
{[%clk 0:02:54.8]} 8... Nxd3+ {[%clk 0:03:02.2]} 9. Qxd3 {[%clk 0:02:55.5]} 9...
Bd6 {[%clk 0:03:02.9]} 10. O-O {[%clk 0:02:55.2]} 10... O-O {[%clk 0:03:03.6]}
11. Be3 {[%clk 0:02:55.4]} 11... Re8 {[%clk 0:03:01.1]} 12. Nbd2 {[%clk
0:02:54.8]} 12... Ne4 {[%clk 0:02:59.5]} 13. Rfd1 {[%clk 0:02:54.8]} 13... Bf5
{[%clk 0:02:58.9]} 14. Nf1 {[%clk 0:02:49.9]} 14... Qf6 {[%clk 0:02:14.7]} 15.
Qxd5 {[%clk 0:02:46]} 15... Bg6 {[%clk 0:00:48.8]} 16. Bd4 {[%clk 0:02:36.6]}
16... Qf4 {[%clk 0:00:47.5]} 17. Be3 {[%clk 0:02:27.6]} 17... Qf6 {[%clk
0:00:47.6]} 18. Ng5 {[%clk 0:01:57.2]} 18... Rad8 {[%clk 0:00:44.4]} 19. Nxe4
{[%clk 0:01:47.8]} 19... Bxe4 {[%clk 0:00:44.4]} 20. Qg5 {[%clk 0:01:42.7]}
20... Qe6 {[%clk 0:00:37]} 21. Bf4 {[%clk 0:01:36.6]} 21... h6 {[%clk
0:00:33.4]} 22. Qg3 {[%clk 0:01:36.4]} 22... Bf8 {[%clk 0:00:31]} 23. Ne3 {[%clk
0:01:27.1]} 23... b6 {[%clk 0:00:29]} 24. Ng4 {[%clk 0:01:15.2]} 24... Kh7
{[%clk 0:00:27.9]} 25. Re1 {[%clk 0:00:59.5]} 25... Qf5 {[%clk 0:00:20.7]} 26.
Ne3 {[%clk 0:00:56.3]} 26... Qf6 {[%clk 0:00:20.8]} 27. Rad1 {[%clk 0:00:47.9]}
27... Rxd1 {[%clk 0:00:19.4]} 28. Rxd1 {[%clk 0:00:48.2]} 28... Qe6 {[%clk
0:00:15.8]} 29. c4 {[%clk 0:00:43.1]} 29... Bc5 {[%clk 0:00:13.6]} 30. Nd5
{[%clk 0:00:39.7]} 30... Bg6 {[%clk 0:00:09.2]} 31. Be3 {[%clk 0:00:37.1]} 31...
Bd6 {[%clk 0:00:06.6]} 32. Bf4 {[%clk 0:00:29.8]} 32... Bc5 {[%clk 0:00:05.1]}
33. b4 {[%clk 0:00:24.1]} 33... Qe2 {[%clk 0:00:03.3]} 34. Rf1 {[%clk
0:00:20.7]} 34... Bf8 {[%clk 0:00:01.7]} 35. Be3 {[%clk 0:00:20.5]} 35... Qxc4
{[%clk 0:00:01.9]} 36. Nf4 {[%clk 0:00:20.9]} 36... Qxb4 {[%clk 0:00:02]} 37.
Nxg6 {[%clk 0:00:20.9]} 37... fxg6 {[%clk 0:00:02.9]} 38. h4 {[%clk 0:00:20.3]}
38... Qe4 {[%clk 0:00:02.6]} 39. Re1 {[%clk 0:00:19]} 39... Qf5 {[%clk
0:00:02.8]} 40. Qc7 {[%clk 0:00:17.3]} 40... Re7 {[%clk 0:00:02.7]} 41. Qb8
{[%clk 0:00:16.9]} 41... Rf7 {[%clk 0:00:03.3]} 42. Qd8 {[%clk 0:00:16]} 42...
Bc5 {[%clk 0:00:03.6]} 43. Qd2 {[%clk 0:00:15.7]} 43... Bxe3 {[%clk 0:00:03.7]}
44. Qxe3 {[%clk 0:00:16.6]} 44... Qf6 {[%clk 0:00:03]} 45. g3 {[%clk 0:00:17]}
45... b5 {[%clk 0:00:02.2]} 46. Qe4 {[%clk 0:00:17.2]} 46... a6 {[%clk
0:00:02.7]} 47. Qe3 {[%clk 0:00:17.2]} 47... Qf5 {[%clk 0:00:03]} 48. Re2 {[%clk
0:00:17.2]} 48... g5 {[%clk 0:00:02.7]} 49. hxg5 {[%clk 0:00:16.9]} 49... Qxg5
{[%clk 0:00:03.3]} 50. Qxg5 {[%clk 0:00:16.9]} 50... hxg5 {[%clk 0:00:04.2]} 51.
Re6 {[%clk 0:00:17.5]} 51... Rf6 {[%clk 0:00:04.5]} 52. Re7 {[%clk 0:00:17.4]}
52... Kg6 {[%clk 0:00:05.1]} 53. Ra7 {[%clk 0:00:17.6]} 53... g4 {[%clk
0:00:02.8]} 54. Kg2 {[%clk 0:00:16.9]} 54... Kh6 {[%clk 0:00:03.4]} 55. Ra8
{[%clk 0:00:17.1]} 55... g6 {[%clk 0:00:03.2]} 56. Ra7 {[%clk 0:00:17.4]} 56...
Kg5 {[%clk 0:00:03.7]} 57. Ra8 {[%clk 0:00:16.2]} 57... Rd6 {[%clk 0:00:03.3]}
58. Ra7 {[%clk 0:00:15.7]} 58... Kf5 {[%clk 0:00:03.8]} 59. Ra8 {[%clk
0:00:15.4]} 59... Ke4 {[%clk 0:00:03.8]} 60. Ra7 {[%clk 0:00:11.9]} 60... Kd3
{[%clk 0:00:03.9]} 61. f3 {[%clk 0:00:11.1]} 61... Kc3 {[%clk 0:00:01.7]} 62.
fxg4 {[%clk 0:00:10.5]} 62... Kb2 {[%clk 0:00:02.3]} 63. Re7 {[%clk 0:00:04.6]}
63... Kxa2 {[%clk 0:00:02.6]} 64. Kf3 {[%clk 0:00:05.2]} 64... b4 {[%clk
0:00:02.6]} 65. Rb7 {[%clk 0:00:04.7]} 65... b3 {[%clk 0:00:02.7]} 66. Kf4
{[%clk 0:00:05.2]} 66... b2 {[%clk 0:00:03.2]} 67. Rb6 {[%clk 0:00:02.9]} 67...
Rxb6 {[%clk 0:00:03.1]} 0-1